Cogmind - Beta 15 @@@ ROGUE MODE // 2025.06.07 @ 23:22:36 Player: nado Result: Destroyed by G-34 Mercenary with Small Laser Performance ------------- Evolutions (0) 0 Regions Visited (1) 200 Robots Destroyed (34) 170 Value Destroyed (464) 464 Prototype IDs (0) 0 Alien Tech Used (0) 0 Bonus (0) 0 TOTAL SCORE: 834 Bonus ------- None Cogmind --------- Core Integrity 0/250 Matter 300/300 Energy 100/100 System Corruption 2% Temperature Cool (6) Movement Core (700) Ox13 Location -10/Materials Parts ------- > --- POWER (1) -------- (None) > --- PROPULSION (2) --- (None) > --- UTILITY (2) ------ High-capacity Storage Unit > --- WEAPON (2) ------- (None) > --- INVENTORY (20) --- Ion Engine Aluminum Leg Aluminum Leg Compact Wheel Compact Wheel Tractor Beam Grenade Launcher Grenade Launcher Grenade Launcher Peak State ------------ > --- POWER ------------ Ion Engine > --- PROPULSION ------- Aluminum Leg Aluminum Leg > --- UTILITY ---------- Small Storage Unit Large Storage Unit > --- WEAPON ----------- Assault Rifle Light Assault Rifle > --- INVENTORY -------- Ion Engine Light Treads Light Treads Compact Wheel Compact Wheel EM Pulse Gun Grenade Launcher [Rating: 7] Favorites ----------- Power Ion Engine Engine Ion Engine Propulsion Light Treads Treads Light Treads Leg Aluminum Leg Utility Heat Sink Device Heat Sink Storage High-capacity Storage Unit Weapon Assault Rifle Energy Gun EM Pulse Gun Ballistic Gun Assault Rifle Build | -11 -10 ------- Run | Yrd Mat Slots Evolved . | . . Power . | . . Propulsion . | . . Utility . | . . Weapon . | . . Parts Attached 6 | . 6 Power . | . . Engine . | . . Core . | . . Reactor . | . . Propulsion 2 | . 2 Treads 2 | . 2 Leg . | . . Wheel . | . . Hover . | . . Flight . | . . Utility 3 | . 3 Device 1 | . 1 Storage 2 | . 2 Processor . | . . Hackware . | . . Protection . | . . Artifact . | . . Weapon 1 | . 1 Energy Gun 1 | . 1 Energy Cannon . | . . Ballistic Gun . | . . Ballistic Cannon . | . . Launcher . | . . Special Weapon . | . . Impact Weapon . | . . Slashing Weapon . | . . Piercing Weapon . | . . Special Melee Weapon . | . . Unidentified Prototypes . | . . Parts Lost 7 | . 7 Power 1 | . 1 Propulsion 2 | . 2 Utility 1 | . 1 Weapon 3 | . 3 Highest Loss Streak 4 | . 4 To Critical Strikes . | . . Average Backups 8 | . 8 Power 1 | . 1 Propulsion 4 | . 4 Utility . | . . Weapon 2 | . 2 Tool/Special . | . . Unused Backups 13 | . 13 Power 2 | . 2 Propulsion 4 | . 4 Utility 2 | . 2 Weapon 5 | . 5 Tool/Special . | . . Average Slot Usage (%) 87 | . 87 Engine 13 | . 13 Treads 11 | . 11 Leg 6 | . 6 Device 13 | . 13 Storage 14 | . 14 Energy Gun 8 | . 8 Ballistic Gun 18 | . 18 Peak Build Rating 7 | . 7 Average Rating 6 | . 6 On Entrance 6 | 6 6 Naked Turns . | . . Heaviest Build 50 | 13 50 Greatest Support 40 | 20 40 Greatest Overweight (x) 16 | . 16 Average Overweight (x) 1 | . 1 Largest Inventory Capacity 20 | . 20 Average Capacity 18 | . 18 Most Carried 9 | . 9 Average Carried 8 | . 8 Final Capacity 20 | 8 20 Final Carried 9 | 6 9 Class Distribution -------------------- 100% | Mutant Dominant Class ---------------- Mutant | -10/Materials Resources | -11 -10 ----------- Run | Yrd Mat Matter Collected 494 | 200 294 Remotely . | . . Salvage Created 895 | . 895 Parts 70 | . 70 Haulers Intercepted 1 | . 1 Recyclers Shooed 1 | . 1 Parts Field Recycled . | . . Retrieved Matter . | . . Parts Self-Destructed . | . . Prevented . | . . Kills | -11 -10 ------- Run | Yrd Mat Combat Hostiles Destroyed 15 | . 15 Guns 14 | . 14 AOE 1 | . 1 Classes Destroyed 7 | . 7 Worker 8 | . 8 Builder 8 | . 8 Hauler 1 | . 1 Recycler 1 | . 1 Operator 1 | . 1 Swarmer 6 | . 6 Grunt 9 | . 9 Best Kill Streak 9 | . 9 Combat Bots Only 6 | . 6 Max Kills in Single Turn 2 | . 2 Gunslinging . | . . Exploded 1 | . 1 Melee . | . . Uniques/NPCs Destroyed . | . . Combat | -11 -10 -------- Run | Yrd Mat Hostile Shots Fired 92 | . 92 Missed 25 | . 25 Hits 67 | . 67 Projectile 67 | . 67 AOE 1 | . 1 Damage Taken 937 | . 937 Core 256 | . 256 Absorbed by Shields . | . . Core Remaining (%) 100 | 100 . Volleys Fired 79 | . 79 Largest 2 | . 2 Hottest 60 | . 60 Shots Fired 151 | . 151 Gun 151 | . 151 Cannon . | . . Launcher . | . . Special . | . . Kinetic 95 | . 95 Thermal . | . . Explosive . | . . Electromagnetic 56 | . 56 Robot Hit Streak 12 | . 12 Robot Miss Streak 5 | . 5 Penetration Max . | . . Secondary Targets 2 | . 2 Max Gunslinging Chain 1 | . 1 Shots Hit Robots 93 | . 93 Core Hits 46 | . 46 Critical Kills . | . . Critical Parts Destroyed . | . . Critical Strikes 1 | . 1 Corrupt 1 | . 1 Melee Attacks . | . . Impact . | . . Slashing . | . . Piercing . | . . Sneak Attacks . | . . Combat Hostiles . | . . Follow-up Attacks . | . . Damage Inflicted 1334 | . 1334 Guns 1041 | . 1041 Cannons . | . . Explosions 283 | . 283 Melee . | . . Ramming 10 | . 10 Kinetic 566 | . 566 Thermal 283 | . 283 Explosive . | . . Electromagnetic 475 | . 475 Impact . | . . Slashing . | . . Piercing . | . . Highest Corruption 2 | . 2 Average Corruption 2 | . 2 Corruption Purged . | . . Corruption Blocked . | . . Effects 3 | . 3 Message Errors 1 | . 1 Energy Discharges 1 | . 1 Data Loss (minor) 1 | . 1 Overload Shots . | . . Overflow Damage 34 | . 34 Projectiles . | . . Explosions 34 | . 34 Melee . | . . Knockbacks . | . . Impact . | . . Kinetic . | . . Secondary . | . . Self-Inflicted Damage 32 | . 32 Shots 2 | . 2 Rammed 3 | . 3 Targets Rammed 3 | . 3 Kicked . | . . Crushed . | . . Highest Temperature 2 | . 2 Average Temperature 2 | . 2 Received Heat Transfer 327 | . 327 Siege Activations . | . . Martial Activations . | . . Shielding Activations . | . . Robots Disrupted . | . . Combat Hostiles . | . . Robots Corrupted . | . . Combat Hostiles . | . . Parts Fried 1 | . 1 Impact Corruptions . | . . Robots Melted . | . . Combat Hostiles . | . . Parts Melted . | . . Heat Transferred 300 | . 300 Parts Sabotaged . | . . Parts Stolen . | . . Parts Stripped . | . . Power Chain Reactions 4 | . 4 Alert | -11 -10 ------- Run | Yrd Mat Maximum Alert Level 1 | . 1 Low Security (%) 91 | . 91 Level 1 8 | . 8 Level 2 . | . . Level 3 . | . . Level 4 . | . . Level 5 . | . . High Security . | . . Max Security . | . . Peak Influence 209 | . 209 Initial . | . . Average 85 | . 85 Influence Increases 565 | . 565 Destroy 0b10 Robot/C 300 | . 300 Destroy 0b10 Robot/NC 95 | . 95 Destroy Leader 62 | . 62 Successful Hack 4 | . 4 Select Force Hacks 30 | . 30 Destroy Structure 14 | . 14 Lose Combat Pursuer 60 | . 60 Influence Decreases 447 | . 447 Time Decay 377 | . 377 Lost Part 70 | . 70 Squads Dispatched 4 | . 4 Investigation 3 | . 3 Extermination . | . . Reinforcement 1 | . 1 Assault . | . . Garrison . | . . Intercept . | . . Searches Triggered . | . . Construction Impeded . | . . Haulers Reinforced . | . . Active Scanning Responses . | . . Cargo Convoy Interrupts . | . . Stealth | -11 -10 --------- Run | Yrd Mat Distress Signals 3 | . 3 Communications Jammed . | . . Distress Signals . | . . Times Spotted 28 | . 28 Peak Tracking Total 5 | . 5 Tactical Retreats 3 | . 3 Traps | -11 -10 ------- Run | Yrd Mat Traps Triggered 1 | . 1 Indirectly . | . . Trap Hack Attempts . | . . Triggered . | . . Disarmed . | . . Reprogrammed . | . . Reused . | . . Traps Extracted . | . . Installed . | . . Triggered . | . . Machines | -11 -10 ---------- Run | Yrd Mat Machines Disabled . | . . Max in Single Turn . | . . Machines Repaired . | . . Machines Dismantled . | . . Machines Sabotaged . | . . Overloaded Fab Kills . | . . Hacking | -11 -10 --------- Run | Yrd Mat Machines Accessed 4 | . 4 Terminals 3 | . 3 Fabricators . | . . Repair Stations . | . . Recycling Units 1 | . 1 Scanalyzers . | . . Garrison Access . | . . Total Hacks 12 | . 12 Successful 6 | . 6 Failed 6 | . 6 Catastrophic . | . . Database Lockouts . | . . Manual 12 | . 12 Terminals 11 | . 11 Fabricators . | . . Repair Stations . | . . Recycling Units 1 | . 1 Scanalyzers . | . . Garrison Access . | . . Terminal Hacks . | . . Fabricator Hacks . | . . Repair Station Hacks . | . . Recycling Unit Hacks . | . . Scanalyzer . | . . Garrison Access Hacks . | . . Unauthorized Hacks 6 | . 6 Terminals 5 | . 5 Botnet 2 | . 2 Skim 3 | . 3 Fabricators . | . . Repair Stations . | . . Recycling Units 1 | . 1 Tunnel 1 | . 1 Scanalyzers . | . . Garrison Access . | . . Data Cores Recovered . | . . Used . | . . Hacking Detections 3 | . 3 Full Trace Events 1 | . 1 Feedback Events . | . . Feedback Blocked . | . . Robot Schematics Acquired . | . . Robots Built . | . . Authchips . | . . Time . | . . Total Robot Build Rating . | . . Part Schematics Acquired . | . . Parts Built . | . . Authchips . | . . Time . | . . Total Part Build Rating . | . . Parts Repaired . | . . Time . | . . Parts Recycled . | . . Recycled Matter . | . . Retrieved Matter . | . . Retrieved Components . | . . Parts Scanalyzed . | . . Part Schematics Acquired . | . . Parts Damaged . | . . Bothacking | -11 -10 ------------ Run | Yrd Mat Used RIF Installer . | . . Robots Hacked . | . . Non-combat . | . . Combat . | . . Robot Hacks Applied . | . . Relay Couplers Released . | . . Fabnet Peak Effective % . | . . Robots Rewired . | . . Allies Hacked . | . . Hacks Repelled . | . . Allies | -11 -10 -------- Run | Yrd Mat Total Allies . | . . Largest Group . | . . Highest-Rated Group . | . . Highest-Rated Ally . | . . Total Orders . | . . Ally Attacks . | . . Total Damage . | . . Kills . | . . Allies Corrupted . | . . Allies Melted . | . . Intel | -11 -10 ------- Run | Yrd Mat Active Infowar (turns) . | . . Robot Analysis Total . | . . Derelict Logs Recovered . | . . Drone Launches . | . . Drone Recoveries . | . . Exploration | -11 -10 ------------- Run | Yrd Mat Turns Passed 1720 | . 1720 Spaces Moved 378 | 1 377 Core 21 | . 21 Treads 231 | . 231 Legs 126 | 1 125 Wheels . | . . Hover . | . . Flight . | . . Fastest Speed 120 | 120 120 Average Speed 236 | 120 236 Slowest Speed 850 | 120 850 Overloaded Moves . | . . Propulsion Burnouts . | . . Robots Hopped . | . . Potential Cave-ins . | . . Cave-ins Triggered . | . . Exploration Rate (%) 37 | 2 72 Regions Visited 1 Branch Regions . Pre-discovered Areas 1 | . 1 Known Exits Taken . | . . Unknown Exits Taken 1 | 1 . Scrap Searched . | . . Spaces Dug . | . . Terrain Destroyed 12 | . 12 Melee . | . . Projectile . | . . AOE 12 | . 12 Terrain Rammed . | . . Walls Destroyed . | . . Machines Disabled . | . . Actions | -11 -10 --------- Run | Yrd Mat Total 1041 | . 1041 Wait 568 | . 568 Move 377 | . 377 Hop . | . . Pick Up 5 | . 5 Fast Attach 2 | . 2 Attach 1 | . 1 Detach 1 | . 1 Swap 3 | . 3 Drop 2 | . 2 Fire 79 | . 79 Melee . | . . Ram 2 | . 2 Kick . | . . Crush 1 | . 1 Escape Stasis . | . . Rewire . | . . Trap . | . . Miscellaneous . | . . Route ------- -11/Scrapyard -10/Materials (discovered 3 exits: [*Mat x2] / [*Min]) History --------- Turn | Location | Event 1 | -11/Scrapyard | Discovered new exit (range 0) 1 | -11/Scrapyard | Entered Materials 302 | -10/Materials | Build established: Mutant 466 | -10/Materials | Discovered new exit (range 15) 556 | -10/Materials | Core integrity fell below 50% 839 | -10/Materials | Discovered new exit (range 15) 1073 | -10/Materials | Core integrity fell below 20% 1621 | -10/Materials | Discovered new exit (range 8) 1721 | -10/Materials | Destroyed by G-34 Mercenary with Small Laser Last Messages --------------- 01664_ An alarm sounds. 01664_ ALERT: Alarm triggered, dispatching investigation squad. 01671_ UXHH>Z%VX 01701_ K-01 Serf cleans the Material Compactor. 01704_ EM Pulse Gun destroyed. 01705_ K-01 Serf collects debris. 01709_ Assault Rifle destroyed. 01711_ K-01 Serf collects debris. 01713_ Heat Sink destroyed. 01714_ Slammed into G-34 Mercenary. 01714_ K-01 Serf collects debris. 01719_ Ion Engine destroyed. Map ----- +----------------------------------------------------+ | "" # ? | | "" # | | "" # """ """ """ """ ? #############+ | | # """ """ """ """ ? ? ???????# | | # """ """ """ """ ?? ????????# """ | | #### ?? ""T""?????????# """ | | ### ???""""??????????# """ | | ????????????????# | | ### ????????????????# "" | | ??####### ### #???# #????????????????# R | | ???????##+############# ##???????????????# "" | | ???????# | #""" #???????????????# | | ######## #" #???????????????####### | | # """"" #"! #?????????????????????? | | | # """"" #"" < #?????????????????????? | | | ! # """"" #"| #?????????????????????? | | | # #" #?????????????????????? | | #%% % #?"" #?????????????????????? | | ##+#####+####??# #??########????????????? | | ## ### ##### # #????????????? | | # %! !=%*%=**+% #????????????? | | ######## % !==%==[%# #????????????? | | ??????## =%[!=*!=!%/k%!*%=#?? #????????????? | | ???????# *=! !%!%"""= #????######????????????? | | ???????####### !|!""""" #??????????????????????? | | ?????????????# =%!!"""""g@#??????????????????????? | | ?????????????+ =*"""""*g ?????????????????????? | | ?????????????# """ T???????????????????? | | ?????????????# ?????????????????? | | ?????????????# #????????????????? | | ?????????????# # ##????????????????? | | ?????????????# # #?????????????????? | | ????????????? # #?????????????????? | | ????????????## #? #?????????????????? | | ?????????????###############? #?????????????????? | | ?????????????????????????????? ?????????????????? | | ?????????????????????????????? #????????????????? | | ??????????????????????????????? #????????????????? | | ????????????????????????????????#????????????????? | | ?????????????????????????????????????????????????? | | ?????????????????????????????????????????????????? | | ?????????????????????????????????????????????????? | | ?????????????????????????????????????????????????? | | ?????????????????????????????????????????????????? | | ?????????????????????????????????????????????????? | | ?????????????????????????????????????????????????? | | ?????????????????????????????????????????????????? | | ?????????????????????????????????????????????????? | | ?????????????????????????????????????????????????? | | ?????????????????????????????????????????????????? | +----------------------------------------------------+ Best States ------------- Heat Dissipation 35 Energy Generation 10 Energy Capacity 250 Matter Stores 300 Matter Capacity 300 Sight Range 16 Terrain Scan Density 10 Evasion (%) 55 Recoil Reduction 2 Item Schematics ----------------- None Robot Schematics ------------------ None Fabricated ------------ Nothing Repaired ---------- Nothing Alien Tech Used ----------------- None Achievements -------------- None Challenges ------------ None Game ------ Seed FlyingInertialSlayer Manual? 0 Play Time 00:11:05 Cumulative 154.6 hours Start 2025.06.07 @ 22:11:32 End 2025.06.07 @ 23:22:36 Sessions 1 Manual Loads 0 Difficulty Rogue Special Mode None Game No. 81 Rogue 81 Adventurer 0 Explorer 0 Win Type - Total 4 Types 3/0/1/0/0/0/0/0/0/0 Lore% 49 Gallery% 42 Achievement% 44 Wizard Run 0 Options --------- Layout 0 ASCII 0 Keyboard 1 Movement Vi Keybinds 0 Fullscreen 2 Font 24/Terminus Map View 76x50 Zoom Use 0% Tactical HUD 1 Map Filters NONE Filters NONE Steam 1 RUN: 69be63a7-c264-4c70-91ea-ffa3480f7ba0